[Event "DVM U10 2024"]
[Site "Duesseldorf"]
[Date "2024.12.28"]
[Round "5"]
[White "Roppel, Alexander"]
[Black "Rogozhin, Georg"]
[Result "0-1"]
[ECO "C50"]
[WhiteElo "954"]
[BlackElo "1232"]
[Annotator "NA RC"]
[PlyCount "60"]
[EventDate "2024.12.23"]
[EventType "team-tourn"]
[EventRounds "7"]
[EventCountry "GER"]
[SourceTitle "playchess.com"]
[Source "ChessBase"]
[SourceQuality "1"]
[TimeControl "3300+5"]

1. e4 {[%emt 0:00:02]} e5 {[%emt 0:00:00]} 2. Nf3 {[%emt 0:00:01]} Nc6 {[%emt 0:00:08]} 3. Bc4 {[%emt 0:00:04]} Bc5 {[%emt 0:00:04]} 4. d3 {[%emt 0:00:13]} d6 {[%emt 0:00:08]} 5. h3 {[%emt 0:00:07]} Nf6 {[%emt 0:00:12]} 6. O-O {[%emt 0:00:13]} h6 {[%emt 0:00:04]} 7. Nc3 {[%emt 0:00:07]} O-O {[%emt 0:00:08]} 8. Nh4 {[%emt 0:00:10]} Be6 {[%emt 0:01:28]} 9. Bxe6 {[%emt 0:00:13]} fxe6 {[%emt 0:00:05]} 10. Qf3 {[%emt 0:00:17]} Nh7 {[%emt 0:00:44]} 11. Qg3 {[%emt 0:00:15]} Nd4 {[%emt 0:00:57]} 12. Bxh6 {[%emt 0:00:16]} Qf6 {[%emt 0:01:01]} 13. Ng6 {[%emt 0:00:44]} Rf7 {[%emt 0:01:05]} 14. Nh4 {[%emt 0:01:16]} Qxh6 {[%emt 0:01:11]} 15. Ng6 {[%emt 0:00:46]} Ng5 {[%emt 0:01:43]} 16. Nh4 {[%emt 0:00:12]} Bb4 {[%emt 0:00:12]} 17. Na4 {[%emt 0:00:18]} Ne2+ {[%emt 0:00:28]} 18. Kh2 {[%emt 0:00:17]} Nxg3 {[%emt 0:00:12]} 19. fxg3 {[%emt 0:00:46]} Rxf1 {[%emt 0:00:03]} 20. Rxf1 {[%emt 0:00:13]} Rf8 {[%emt 0:00:05]} 21. Rd1 {[%emt 0:00:34]} d5 {[%emt 0:00:14]} 22. c3 {[%emt 0:00:28]} Be7 {[%emt 0:00:16]} 23. exd5 {[%emt 0:01:40]} exd5 {[%emt 0:00:48]} 24. Re1 {[%emt 0:00:00]} Bd6 {[%emt 0:00:28]} 25. c4 {[%emt 0:00:40]} e4 {[%emt 0:00:12]} 26. c5 {[%emt 0:00:44]} Be5 {[%emt 0:01:57]} 27. c6 {[%emt 0:00:40]} bxc6 {[%emt 0:00:11]} 28. Nc5 {[%emt 0:00:15]} Qxh4 {[%emt 0:00:22]} 29. Nd7 {[%emt 0:00:31]} Qxg3+ {[%emt 0:00:10]} 30. Kg1 {[%emt 0:00:08]} Qh2# {[%emt 0:00:31]} 0-1

[Event "DVM U10 2024"]
[Site "Duesseldorf"]
[Date "2024.12.28"]
[Round "5"]
[White "Tong, Minh Huy"]
[Black "Heinig, Arvid"]
[Result "0-1"]
[ECO "C50"]
[WhiteElo "943"]
[BlackElo "1039"]
[Annotator "NA RC"]
[PlyCount "56"]
[EventDate "2024.12.23"]
[EventType "team-tourn"]
[EventRounds "7"]
[EventCountry "GER"]
[SourceTitle "playchess.com"]
[Source "ChessBase"]
[SourceQuality "1"]
[TimeControl "3300+5"]

1. e4 {[%emt 0:00:01]} e5 {[%emt 0:00:09]} 2. Nf3 {[%emt 0:00:03]} Nc6 {[%emt 0:00:14]} 3. Bc4 {[%emt 0:00:03]} Nf6 {[%emt 0:00:15]} 4. d3 {[%emt 0:00:05]} Bc5 {[%emt 0:00:11]} 5. Nc3 {[%emt 0:00:15]} d6 {[%emt 0:00:14]} 6. Bg5 {[%emt 0:00:09]} h6 {[%emt 0:00:11]} 7. Bh4 {[%emt 0:00:04]} g5 {[%emt 0:00:10]} 8. Bg3 {[%emt 0:00:12]} Bg4 {[%emt 0:00:17]} 9. h3 {[%emt 0:00:05]} Bh5 {[%emt 0:00:12]} 10. h4 {[%emt 0:03:10]} Nd4 {[%emt 0:02:09]} 11. hxg5 {[%emt 0:00:37]} hxg5 {[%emt 0:00:26]} 12. a3 {[%emt 0:00:35]} Qe7 {[%emt 0:01:09]} 13. Nd5 {[%emt 0:03:17]} Nxd5 {[%emt 0:00:31]} 14. Bxd5 {[%emt 0:01:02]} O-O-O {[%emt 0:00:15]} 15. c3 {[%emt 0:01:10]} Bxf3 {[%emt 0:00:10]} 16. Qa4 {[%emt 0:13:36]} Rxh1+ {[%emt 0:00:29]} 17. Kd2 {[%emt 0:00:09]} Rxa1 {[%emt 0:00:37]} 18. gxf3 {[%emt 0:00:45]} Nxf3+ {[%emt 0:00:25]} 19. Kc2 {[%emt 0:03:29]} Qd7 {[%emt 0:00:17]} 20. Qc4 {[%emt 0:04:36]} Ne1+ {[%emt 0:03:55]} 21. Kb3 {[%emt 0:01:52]} b5 {[%emt 0:00:42]} 22. Bb7+ {[%emt 0:02:31]} Kxb7 {[%emt 0:00:35]} 23. Qd5+ {[%emt 0:00:01]} c6 {[%emt 0:00:27]} 24. Qxc5 {[%emt 0:05:19]} dxc5 {[%emt 0:01:13]} 25. Bxe5 {[%emt 0:00:25]} c4+ {[%emt 0:00:21]} 26. dxc4 {[%emt 0:00:31]} bxc4+ {[%emt 0:00:20]} 27. Kb4 {[%emt 0:00:04]} Qe7+ {[%emt 0:00:33]} 28. Kxc4 {[%emt 0:00:35]} Qxe5 {[%emt 0:00:35]} 0-1

[Event "DVM U10 2024"]
[Site "Duesseldorf"]
[Date "2024.12.28"]
[Round "5"]
[White "Krupp, Jonathan"]
[Black "Schubert, Anton"]
[Result "1-0"]
[ECO "C50"]
[WhiteElo "941"]
[BlackElo "824"]
[Annotator "NA RC"]
[PlyCount "101"]
[EventDate "2024.12.23"]
[EventType "team-tourn"]
[EventRounds "7"]
[EventCountry "GER"]
[SourceTitle "playchess.com"]
[Source "ChessBase"]
[SourceQuality "1"]
[TimeControl "3300+5"]

1. e4 {[%emt 0:00:01]} e5 {[%emt 0:00:05]} 2. Nf3 {[%emt 0:00:01]} Nc6 {[%emt 0:00:15]} 3. Bc4 {[%emt 0:00:03]} Bc5 {[%emt 0:00:12]} 4. Nc3 {[%emt 0:00:05]} Nf6 {[%emt 0:00:07]} 5. d3 {[%emt 0:00:09]} d6 {[%emt 0:00:06]} 6. O-O {[%emt 0:00:11]} Bg4 {[%emt 0:00:14]} 7. Be3 {[%emt 0:00:14]} Bxe3 {[%emt 0:00:47]} 8. fxe3 {[%emt 0:00:01]} O-O {[%emt 0:00:22]} 9. h3 {[%emt 0:00:02]} Be6 {[%emt 0:00:35]} 10. Bb3 {[%emt 0:00:12]} Bxb3 {[%emt 0:00:54]} 11. axb3 {[%emt 0:00:11]} d5 {[%emt 0:01:05]} 12. Ra4 {[%emt 0:03:20]} a6 {[%emt 0:01:22]} 13. Ra1 {[%emt 0:01:44]} dxe4 {[%emt 0:01:54]} 14. Nxe4 {[%emt 0:00:25]} Nxe4 {[%emt 0:00:47]} 15. dxe4 {[%emt 0:00:06]} Nb4 {[%emt 0:00:19]} 16. Rf2 {[%emt 0:01:40]} Nc6 {[%emt 0:00:36]} 17. Rd2 {[%emt 0:02:26]} Qc8 {[%emt 0:00:35]} 18. Ng5 {[%emt 0:02:06]} h6 {[%emt 0:00:37]} 19. Nf3 {[%emt 0:01:24]} Rd8 {[%emt 0:00:20]} 20. Rd5 {[%emt 0:02:08]} b6 {[%emt 0:01:20]} 21. Qd2 {[%emt 0:00:53]} Rxd5 {[%emt 0:02:00]} 22. Qxd5 {[%emt 0:00:30]} Qe8 {[%emt 0:00:21]} 23. Qc4 {[%emt 0:02:20]} a5 {[%emt 0:01:37]} 24. Rd1 {[%emt 0:00:49]} Qe6 {[%emt 0:01:55]} 25. c3 {[%emt 0:04:16]} Qxc4 {[%emt 0:00:22]} 26. bxc4 {[%emt 0:01:35]} Ne7 {[%emt 0:01:25]} 27. Nxe5 {[%emt 0:00:00]} f6 {[%emt 0:00:16]} 28. Rd7 {[%emt 0:00:45]} fxe5 {[%emt 0:00:51]} 29. Rxe7 {[%emt 0:00:11]} a4 {[%emt 0:01:10]} 30. Rxe5 {[%emt 0:00:38]} a3 {[%emt 0:01:08]} 31. bxa3 {[%emt 0:00:04]} Rxa3 {[%emt 0:00:04]} 32. Re7 {[%emt 0:00:37]} Ra7 {[%emt 0:00:14]} 33. e5 {[%emt 0:00:06]} Kf8 {[%emt 0:00:49]} 34. Rd7 {[%emt 0:00:28]} g5 {[%emt 0:01:36]} 35. Kf2 {[%emt 0:00:32]} Ke8 {[%emt 0:00:32]} 36. Rh7 {[%emt 0:00:06]} Kd8 {[%emt 0:01:06]} 37. Kf3 {[%emt 0:01:07]} Ra5 {[%emt 0:00:17]} 38. Ke4 {[%emt 0:00:25]} Kc8 {[%emt 0:00:18]} 39. Kf5 {[%emt 0:00:18]} Kb7 {[%emt 0:00:23]} 40. Kf6 {[%emt 0:00:01]} Kc6 {[%emt 0:03:04]} 41. e6 {[%emt 0:00:06]} Ra8 {[%emt 0:00:54]} 42. Rd7 {[%emt 0:00:27]} Rf8+ {[%emt 0:01:04]} 43. Kg7 {[%emt 0:00:25]} Ra8 {[%emt 0:00:20]} 44. Rd1 {[%emt 0:00:25]} h5 {[%emt 0:00:13]} 45. e7 {[%emt 0:00:06]} b5 {[%emt 0:00:29]} 46. Rd8 {[%emt 0:00:10]} Ra3 {[%emt 0:00:38]} 47. e8=Q+ {[%emt 0:00:07]} Kc5 {[%emt 0:00:41]} 48. Qe7+ {[%emt 0:00:06]} Kc6 {[%emt 0:00:30]} 49. Qxa3 {[%emt 0:00:07]} b4 {[%emt 0:00:23]} 50. Qxb4 {[%emt 0:00:09]} g4 {[%emt 0:00:20]} 51. Qb5# {[%emt 0:00:41]} 1-0

[Event "DVM U10 2024"]
[Site "Duesseldorf"]
[Date "2024.12.28"]
[Round "5"]
[White "Ramkumar, Dhuruvan"]
[Black "Teletskyi, Andrii"]
[Result "1-0"]
[ECO "C54"]
[WhiteElo "924"]
[BlackElo "787"]
[Annotator "NA RC"]
[PlyCount "57"]
[EventDate "2024.12.23"]
[EventType "team-tourn"]
[EventRounds "7"]
[EventCountry "GER"]
[SourceTitle "playchess.com"]
[Source "ChessBase"]
[SourceQuality "1"]
[TimeControl "3300+5"]

1. e4 {[%emt 0:00:02]} e5 {[%emt 0:00:05]} 2. Nf3 {[%emt 0:00:07]} Nc6 {[%emt 0:00:04]} 3. Bc4 {[%emt 0:00:09]} Bc5 {[%emt 0:00:07]} 4. c3 {[%emt 0:00:07]} Nf6 {[%emt 0:00:09]} 5. d4 {[%emt 0:00:14]} exd4 {[%emt 0:00:06]} 6. cxd4 {[%emt 0:00:07]} Bb6 {[%emt 0:00:08]} 7. d5 {[%emt 0:00:11]} Ne7 {[%emt 0:01:13]} 8. e5 {[%emt 0:00:07]} Nfg8 {[%emt 0:01:18]} 9. d6 {[%emt 0:00:19]} cxd6 {[%emt 0:00:53]} 10. exd6 {[%emt 0:00:07]} Ng6 {[%emt 0:01:54]} 11. Ng5 {[%emt 0:00:11]} Nh6 {[%emt 0:00:08]} 12. Qb3 {[%emt 0:00:34]} O-O {[%emt 0:00:38]} 13. O-O {[%emt 0:00:35]} Qf6 {[%emt 0:03:48]} 14. Ne4 {[%emt 0:02:01]} Qf5 {[%emt 0:02:40]} 15. Nbc3 {[%emt 0:01:05]} Re8 {[%emt 0:01:35]} 16. Ng3 {[%emt 0:02:53]} Qf6 {[%emt 0:01:57]} 17. Bxh6 {[%emt 0:01:55]} gxh6 {[%emt 0:00:19]} 18. a3 {[%emt 0:00:48]} Ne5 {[%emt 0:01:12]} 19. Rad1 {[%emt 0:02:46]} Nxc4 {[%emt 0:02:32]} 20. Qxc4 {[%emt 0:00:42]} Re6 {[%emt 0:02:40]} 21. Nd5 {[%emt 0:03:59]} Qxb2 {[%emt 0:01:14]} 22. Ne7+ {[%emt 0:00:24]} Kf8 {[%emt 0:01:54]} 23. Nxc8 {[%emt 0:06:45]} Rxc8 {[%emt 0:01:21]} 24. Qxc8+ {[%emt 0:00:13]} Kg7 {[%emt 0:00:10]} 25. Nf5+ {[%emt 0:00:57]} Kg6 {[%emt 0:00:50]} 26. Ne7+ {[%emt 0:00:11]} Kg7 {[%emt 0:00:27]} 27. Qg8+ {[%emt 0:00:26]} Kf6 {[%emt 0:00:17]} 28. Qh8+ {[%emt 0:00:10]} Kg5 {[%emt 0:00:15]} 29. Qxb2 {[%emt 0:00:09]} 1-0

[Event "DVM U10 2024"]
[Site "Duesseldorf"]
[Date "2024.12.28"]
[Round "5"]
[White "Sachse, Alina"]
[Black "Odbayar, Ekhbayar"]
[Result "0-1"]
[ECO "C41"]
[WhiteElo "848"]
[BlackElo "864"]
[Annotator "NA RC"]
[PlyCount "64"]
[EventDate "2024.12.23"]
[EventType "team-tourn"]
[EventRounds "7"]
[EventCountry "GER"]
[SourceTitle "playchess.com"]
[Source "ChessBase"]
[SourceQuality "1"]
[TimeControl "3300+5"]

1. e4 {[%emt 0:00:02]} e5 {[%emt 0:00:10]} 2. Bc4 {[%emt 0:00:07]} h6 {[%emt 0:00:32]} 3. Nf3 {[%emt 0:00:09]} d6 {[%emt 0:00:13]} 4. O-O {[%emt 0:00:14]} Be7 {[%emt 0:00:06]} 5. Nc3 {[%emt 0:00:11]} Nf6 {[%emt 0:00:31]} 6. d3 {[%emt 0:00:48]} O-O {[%emt 0:00:00]} 7. Bd2 {[%emt 0:00:50]} a6 {[%emt 0:00:32]} 8. Qe2 {[%emt 0:01:02]} b5 {[%emt 0:00:09]} 9. Bd5 {[%emt 0:00:54]} Nxd5 {[%emt 0:00:24]} 10. Nxd5 {[%emt 0:00:14]} Bg5 {[%emt 0:00:33]} 11. Bxg5 {[%emt 0:00:38]} hxg5 {[%emt 0:00:12]} 12. Qe3 {[%emt 0:00:44]} g4 {[%emt 0:00:37]} 13. Nd2 {[%emt 0:00:17]} Be6 {[%emt 0:01:00]} 14. Nc3 {[%emt 0:00:32]} Nc6 {[%emt 0:00:33]} 15. Nf3 {[%emt 0:03:35]} gxf3 {[%emt 0:00:19]} 16. Qxf3 {[%emt 0:00:10]} Nd4 {[%emt 0:00:11]} 17. Qh5 {[%emt 0:00:30]} Qf6 {[%emt 0:00:42]} 18. Rae1 {[%emt 0:00:18]} Qh6 {[%emt 0:00:31]} 19. Qf3 {[%emt 0:00:36]} Nxf3+ {[%emt 0:00:15]} 20. Kh1 {[%emt 0:00:14]} Nxe1 {[%emt 0:00:21]} 21. Rxe1 {[%emt 0:00:18]} Qd2 {[%emt 0:00:17]} 22. Rf1 {[%emt 0:00:19]} Qxc2 {[%emt 0:00:24]} 23. Nd1 {[%emt 0:00:16]} Bxa2 {[%emt 0:00:30]} 24. Ne3 {[%emt 0:02:30]} Qxd3 {[%emt 0:00:47]} 25. g3 {[%emt 0:00:23]} Qxe4+ {[%emt 0:00:27]} 26. Kg1 {[%emt 0:00:18]} d5 {[%emt 0:01:23]} 27. Re1 {[%emt 0:00:40]} d4 {[%emt 0:01:27]} 28. b4 {[%emt 0:00:48]} dxe3 {[%emt 0:00:14]} 29. fxe3 {[%emt 0:00:09]} Qf3 {[%emt 0:00:46]} 30. Rf1 {[%emt 0:01:33]} Qxe3+ {[%emt 0:00:24]} 31. Kh1 {[%emt 0:00:16]} Bd5+ {[%emt 0:00:53]} 32. Rf3 {[%emt 0:00:23]} Bxf3# {[%emt 0:00:07]} 0-1

[Event "DVM U10 2024"]
[Site "Duesseldorf"]
[Date "2024.12.28"]
[Round "5"]
[White "Nordmann, Vigo"]
[Black "Raskob, Levi Franziskus"]
[Result "0-1"]
[ECO "C40"]
[WhiteElo "831"]
[BlackElo "840"]
[Annotator "NA RC"]
[PlyCount "110"]
[EventDate "2024.12.23"]
[EventType "team-tourn"]
[EventRounds "7"]
[EventCountry "GER"]
[SourceTitle "playchess.com"]
[Source "ChessBase"]
[SourceQuality "1"]
[TimeControl "3300+5"]

1. e4 {[%emt 0:00:06]} e5 {[%emt 0:00:02]} 2. Nf3 {[%emt 0:00:06]} Bb4 {[%emt 0:00:13]} 3. Bc4 {[%emt 0:00:29]} Bc5 {[%emt 0:00:02]} 4. O-O {[%emt 0:00:14]} Qf6 {[%emt 0:00:06]} 5. d3 {[%emt 0:00:16]} d6 {[%emt 0:00:08]} 6. Qe2 {[%emt 0:00:36]} Qg6 {[%emt 0:00:00]} 7. Nh4 {[%emt 0:00:48]} Qf6 {[%emt 0:00:07]} 8. g3 {[%emt 0:00:45]} h5 {[%emt 0:00:31]} 9. Qf3 {[%emt 0:01:12]} Qe7 {[%emt 0:00:27]} 10. Nc3 {[%emt 0:00:46]} Bg4 {[%emt 0:00:13]} 11. Nd5 {[%emt 0:00:19]} Qd7 {[%emt 0:00:15]} 12. Qg2 {[%emt 0:01:50]} Bh3 {[%emt 0:00:00]} 13. Nxc7+ {[%emt 0:00:14]} Kf8 {[%emt 0:00:13]} 14. Ng6+ {[%emt 0:00:14]} fxg6 {[%emt 0:00:11]} 15. Qf3+ {[%emt 0:01:01]} Nf6 {[%emt 0:00:12]} 16. Ne6+ {[%emt 0:01:15]} Ke8 {[%emt 0:00:17]} 17. Ng5 {[%emt 0:01:08]} h4 {[%emt 0:00:06]} 18. Be6 {[%emt 0:00:26]} Bxe6 {[%emt 0:00:08]} 19. Nxe6 {[%emt 0:00:16]} Qxe6 {[%emt 0:00:08]} 20. Bg5 {[%emt 0:01:17]} Qh3 {[%emt 0:00:27]} 21. Bxf6 {[%emt 0:00:18]} hxg3 {[%emt 0:00:12]} 22. Qxg3 {[%emt 0:01:25]} Qxg3+ {[%emt 0:00:00]} 23. hxg3 {[%emt 0:00:05]} gxf6 {[%emt 0:00:13]} 24. Kg2 {[%emt 0:00:38]} Nc6 {[%emt 0:00:13]} 25. f3 {[%emt 0:00:18]} f5 {[%emt 0:00:14]} 26. exf5 {[%emt 0:00:11]} gxf5 {[%emt 0:00:04]} 27. Rh1 {[%emt 0:01:40]} Ke7 {[%emt 0:00:00]} 28. f4 {[%emt 0:00:33]} exf4 {[%emt 0:00:20]} 29. gxf4 {[%emt 0:00:05]} Rag8+ {[%emt 0:00:22]} 30. Kf3 {[%emt 0:00:07]} Nd4+ {[%emt 0:00:06]} 31. Ke3 {[%emt 0:00:10]} Nxc2+ {[%emt 0:00:08]} 32. Kd2 {[%emt 0:01:45]} Nxa1 {[%emt 0:00:00]} 33. Rxa1 {[%emt 0:00:06]} Rh2+ {[%emt 0:00:13]} 34. Kc3 {[%emt 0:00:05]} Rg4 {[%emt 0:00:11]} 35. Re1+ {[%emt 0:00:12]} Kd7 {[%emt 0:00:09]} 36. Rf1 {[%emt 0:00:14]} Rhh4 {[%emt 0:00:25]} 37. b4 {[%emt 0:00:28]} Rxf4 {[%emt 0:00:11]} 38. Rg1 {[%emt 0:01:43]} Bxb4+ {[%emt 0:00:00]} 39. Kb3 {[%emt 0:00:11]} Rh3 {[%emt 0:00:27]} 40. Rg7+ {[%emt 0:00:12]} Kc6 {[%emt 0:00:06]} 41. Ka4 {[%emt 0:00:12]} Bc3+ {[%emt 0:00:07]} 42. Kb3 {[%emt 0:00:41]} Bxg7 {[%emt 0:00:06]} 43. Kc2 {[%emt 0:00:16]} Rf2+ {[%emt 0:00:04]} 44. Kb3 {[%emt 0:00:15]} Rxd3+ {[%emt 0:00:05]} 45. Kc4 {[%emt 0:01:55]} Re3 {[%emt 0:00:00]} 46. Kb4 {[%emt 0:00:10]} Rb2+ {[%emt 0:00:08]} 47. Ka4 {[%emt 0:00:11]} Rxa2+ {[%emt 0:00:07]} 48. Kb4 {[%emt 0:00:20]} Re4+ {[%emt 0:00:08]} 49. Kb3 {[%emt 0:00:13]} Rae2 {[%emt 0:00:09]} 50. Ka3 {[%emt 0:00:08]} Rd4 {[%emt 0:00:15]} 51. Kb3 {[%emt 0:00:10]} Rd3+ {[%emt 0:00:04]} 52. Kb4 {[%emt 0:00:32]} Re5 {[%emt 0:00:10]} 53. Ka4 {[%emt 0:00:10]} Rd4+ {[%emt 0:00:04]} 54. Ka3 {[%emt 0:00:09]} Re3+ {[%emt 0:00:02]} 55. Ka2 {[%emt 0:00:19]} Rd2+ {[%emt 0:01:24]} 0-1

[Event "DVM U10 2024"]
[Site "Duesseldorf"]
[Date "2024.12.28"]
[Round "5"]
[White "Möller, Lia Sofie"]
[Black "Sandros Izzi, Diego"]
[Result "0-1"]
[ECO "D00"]
[WhiteElo "829"]
[BlackElo "975"]
[Annotator "NA RC"]
[PlyCount "44"]
[EventDate "2024.12.23"]
[EventType "team-tourn"]
[EventRounds "7"]
[EventCountry "GER"]
[SourceTitle "playchess.com"]
[Source "ChessBase"]
[SourceQuality "1"]
[TimeControl "3300+5"]

1. d4 {[%emt 0:00:03]} d5 {[%emt 0:00:12]} 2. Bf4 {[%emt 0:00:07]} c5 {[%emt 0:00:28]} 3. Nc3 {[%emt 0:00:16]} Nc6 {[%emt 0:00:37]} 4. Nb5 {[%emt 0:00:13]} Qa5+ {[%emt 0:00:13]} 5. Bd2 {[%emt 0:00:39]} Qxb5 {[%emt 0:00:12]} 6. Nf3 {[%emt 0:00:17]} Nf6 {[%emt 0:00:17]} 7. Bf4 {[%emt 0:00:20]} Bg4 {[%emt 0:00:24]} 8. e3 {[%emt 0:00:08]} Qa5+ {[%emt 0:00:14]} 9. c3 {[%emt 0:00:38]} e6 {[%emt 0:00:13]} 10. h3 {[%emt 0:00:19]} Bxf3 {[%emt 0:00:11]} 11. Qxf3 {[%emt 0:00:08]} cxd4 {[%emt 0:00:38]} 12. exd4 {[%emt 0:00:25]} Nxd4 {[%emt 0:00:18]} 13. Qe3 {[%emt 0:00:20]} Nc2+ {[%emt 0:00:11]} 14. Ke2 {[%emt 0:01:21]} Nxe3 {[%emt 0:00:05]} 15. Bxe3 {[%emt 0:00:26]} Bc5 {[%emt 0:00:21]} 16. Bf4 {[%emt 0:00:57]} Qb5+ {[%emt 0:00:15]} 17. Ke1 {[%emt 0:00:18]} Qxb2 {[%emt 0:00:23]} 18. Rc1 {[%emt 0:01:11]} Ne4 {[%emt 0:00:13]} 19. Be2 {[%emt 0:02:22]} Rb8 {[%emt 0:00:15]} 20. Bxb8 {[%emt 0:00:45]} Qxc1+ {[%emt 0:00:05]} 21. Bd1 {[%emt 0:00:22]} Qd2+ {[%emt 0:00:19]} 22. Kf1 {[%emt 0:01:03]} Qxf2# {[%emt 0:00:09]} 0-1

[Event "DVM U10 2024"]
[Site "Duesseldorf"]
[Date "2024.12.28"]
[Round "5"]
[White "Vogel, Alexander"]
[Black "Schmidt, Fabian"]
[Result "0-1"]
[ECO "D01"]
[WhiteElo "787"]
[BlackElo "1971"]
[Annotator "RC"]
[PlyCount "98"]
[EventDate "2024.12.23"]
[EventType "team-tourn"]
[EventRounds "7"]
[EventCountry "GER"]
[SourceTitle "playchess.com"]
[Source "ChessBase"]
[SourceQuality "1"]
[TimeControl "3300+5"]

1. d4 {[%emt 0:00:03]} e6 {[%emt 0:00:01]} 2. Nf3 {[%emt 0:00:18]} Nf6 {[%emt 0:00:04]} 3. Bg5 {[%emt 0:00:09]} Be7 {[%emt 0:00:10]} 4. Nc3 {[%emt 0:00:14]} d5 {[%emt 0:00:13]} 5. e3 {[%emt 0:00:11]} Nbd7 {[%emt 0:00:18]} 6. Bd3 {[%emt 0:00:19]} O-O {[%emt 0:00:11]} 7. O-O {[%emt 0:00:24]} b6 {[%emt 0:00:04]} 8. Qd2 {[%emt 0:00:20]} Bb7 {[%emt 0:00:13]} 9. Rfe1 {[%emt 0:00:26]} c5 {[%emt 0:00:29]} 10. dxc5 {[%emt 0:00:28]} Nxc5 {[%emt 0:00:04]} 11. Be2 {[%emt 0:00:37]} Nfe4 {[%emt 0:00:21]} 12. Nxe4 {[%emt 0:00:30]} Nxe4 {[%emt 0:00:07]} 13. Bxe7 {[%emt 0:00:14]} Nxd2 {[%emt 0:00:08]} 14. Bxd8 {[%emt 0:00:12]} Nxf3+ {[%emt 0:00:04]} 15. Bxf3 {[%emt 0:00:27]} Rfxd8 {[%emt 0:00:12]} 16. e4 {[%emt 0:00:17]} dxe4 {[%emt 0:00:16]} 17. Bxe4 {[%emt 0:00:11]} Bxe4 {[%emt 0:00:04]} 18. Rxe4 {[%emt 0:00:27]} Rd2 {[%emt 0:00:01]} 19. Rc1 {[%emt 0:01:04]} Rad8 {[%emt 0:00:15]} 20. Ree1 {[%emt 0:00:10]} Rc8 {[%emt 0:00:23]} 21. Red1 {[%emt 0:00:17]} Rcxc2 {[%emt 0:00:15]} 22. h3 {[%emt 0:00:25]} h6 {[%emt 0:00:28]} 23. Rxd2 {[%emt 0:00:19]} Rxd2 {[%emt 0:00:58]} 24. Rc7 {[%emt 0:01:00]} a5 {[%emt 0:00:05]} 25. a4 {[%emt 0:01:01]} Rxb2 {[%emt 0:00:14]} 26. Rc8+ {[%emt 0:00:38]} Kh7 {[%emt 0:00:08]} 27. Rc4 {[%emt 0:00:16]} Rb4 {[%emt 0:00:18]} 28. Rc6 {[%emt 0:00:26]} Kg6 {[%emt 0:01:08]} 29. Kf1 {[%emt 0:00:11]} Rxa4 {[%emt 0:00:13]} 30. Rxb6 {[%emt 0:00:13]} Rb4 {[%emt 0:00:39]} 31. Ra6 {[%emt 0:00:10]} a4 {[%emt 0:00:12]} 32. Ke2 {[%emt 0:00:11]} Rb2+ {[%emt 0:00:14]} 33. Kd3 {[%emt 0:00:23]} Rxf2 {[%emt 0:00:23]} 34. Rxa4 {[%emt 0:00:18]} Rxg2 {[%emt 0:00:44]} 35. Rg4+ {[%emt 0:00:54]} Rxg4 {[%emt 0:00:48]} 36. hxg4 {[%emt 0:00:11]} Kg5 {[%emt 0:00:06]} 37. Ke2 {[%emt 0:00:10]} Kxg4 {[%emt 0:00:27]} 38. Kf2 {[%emt 0:00:15]} f5 {[%emt 0:00:08]} 39. Kg2 {[%emt 0:00:10]} h5 {[%emt 0:00:14]} 40. Kf2 {[%emt 0:00:09]} f4 {[%emt 0:00:10]} 41. Kg2 {[%emt 0:00:25]} h4 {[%emt 0:00:26]} 42. Kg1 {[%emt 0:00:15]} e5 {[%emt 0:00:08]} 43. Kf2 {[%emt 0:00:32]} e4 {[%emt 0:00:01]} 44. Kg2 {[%emt 0:00:11]} e3 {[%emt 0:00:06]} 45. Kf1 {[%emt 0:00:04]} h3 {[%emt 0:00:10]} 46. Kg1 {[%emt 0:00:32]} h2+ {[%emt 0:00:05]} 47. Kxh2 {[%emt 0:00:12]} e2 {[%emt 0:00:06]} 48. Kg2 {[%emt 0:00:25]} e1=Q {[%emt 0:00:17]} 49. Kh2 {[%emt 0:00:14]} Qe2+ {[%emt 0:00:23]} 0-1